[Event "Early-Titled-Tuesday-Blitz-October-24-2023"]
[Site "Chess.com"]
[Date "2023.10.24"]
[Round "7"]
[White "pinguino120"]
[Black "Kopytkin"]
[Result "1-0"]
[WhiteElo "2217"]
[BlackElo "2377"]
[TimeControl "180+1"]
[EndTime "9:13:04 PDT"]
[Termination "pinguino120 won by resignation"]

1. e4 {[%clk 0:02:52]} 1... Nf6 {[%clk 0:02:56.9]} 2. e5 {[%clk 0:02:51.3]} 2...
Nd5 {[%clk 0:02:56.2]} 3. d4 {[%clk 0:02:51.9]} 3... d6 {[%clk 0:02:49.2]} 4. c4
{[%clk 0:02:51.9]} 4... Nb6 {[%clk 0:02:48.6]} 5. exd6 {[%clk 0:02:49.7]} 5...
cxd6 {[%clk 0:02:48.2]} 6. Nc3 {[%clk 0:02:48.8]} 6... g6 {[%clk 0:02:48.3]} 7.
Be3 {[%clk 0:02:49]} 7... Bg7 {[%clk 0:02:48.5]} 8. Rc1 {[%clk 0:02:47.9]} 8...
O-O {[%clk 0:02:49.2]} 9. b3 {[%clk 0:02:44.9]} 9... Bf5 {[%clk 0:02:49.7]} 10.
Be2 {[%clk 0:02:38.4]} 10... d5 {[%clk 0:02:49.8]} 11. c5 {[%clk 0:02:36.2]}
11... Nc8 {[%clk 0:02:50]} 12. Bf3 {[%clk 0:02:33.4]} 12... e6 {[%clk 0:02:48]}
13. g4 {[%clk 0:02:32.7]} 13... Be4 {[%clk 0:02:48.3]} 14. Nxe4 {[%clk
0:02:31.7]} 14... dxe4 {[%clk 0:02:48.6]} 15. Bxe4 {[%clk 0:02:32.2]} 15... Nc6
{[%clk 0:02:48.9]} 16. Ne2 {[%clk 0:02:28.3]} 16... N8e7 {[%clk 0:02:38.3]} 17.
O-O {[%clk 0:02:26.1]} 17... f5 {[%clk 0:02:34.6]} 18. Bg2 {[%clk 0:02:22.9]}
18... Nd5 {[%clk 0:02:22.3]} 19. Nf4 {[%clk 0:02:17.9]} 19... Re8 {[%clk
0:02:13.8]} 20. Nxd5 {[%clk 0:02:16.9]} 20... exd5 {[%clk 0:02:13.8]} 21. gxf5
{[%clk 0:02:11.1]} 21... Qh4 {[%clk 0:02:06.7]} 22. Bxd5+ {[%clk 0:02:08.7]}
22... Kh8 {[%clk 0:02:06.4]} 23. Bxc6 {[%clk 0:02:01.9]} 23... bxc6 {[%clk
0:02:06.1]} 24. fxg6 {[%clk 0:02:01.6]} 24... hxg6 {[%clk 0:02:06.1]} 25. Qf3
{[%clk 0:02:01.5]} 25... Rad8 {[%clk 0:02:00.2]} 26. Qxc6 {[%clk 0:01:53.8]}
26... Re4 {[%clk 0:01:56.1]} 27. Kh1 {[%clk 0:01:39.2]} 27... Rf8 {[%clk
0:01:50.1]} 28. Bg5 {[%clk 0:01:30.1]} 28... Qh3 {[%clk 0:01:07.6]} 29. Qxe4
{[%clk 0:01:24.9]} 29... Rf5 {[%clk 0:00:51.5]} 30. Qh4+ {[%clk 0:01:24]} 30...
Qxh4 {[%clk 0:00:51.4]} 31. Bxh4 {[%clk 0:01:24.1]} 1-0

[Event "Early-Titled-Tuesday-Blitz-October-24-2023"]
[Site "Chess.com"]
[Date "2023.10.24"]
[Round "7"]
[White "Dixit_Nikhil"]
[Black "FGHSMN"]
[Result "0-1"]
[WhiteElo "2617"]
[BlackElo "2885"]
[TimeControl "180+1"]
[EndTime "9:13:07 PDT"]
[Termination "FGHSMN won by resignation"]

1. e4 {[%clk 0:03:00.9]} 1... c5 {[%clk 0:02:59.7]} 2. Nf3 {[%clk 0:03:00.8]}
2... d6 {[%clk 0:02:59.3]} 3. d4 {[%clk 0:03:00.6]} 3... cxd4 {[%clk 0:03:00.2]}
4. Nxd4 {[%clk 0:03:01.4]} 4... Nf6 {[%clk 0:03:01.1]} 5. Nc3 {[%clk 0:03:01.9]}
5... Nc6 {[%clk 0:03:01.2]} 6. h3 {[%clk 0:02:53.9]} 6... g6 {[%clk 0:03:00]} 7.
g4 {[%clk 0:02:51.2]} 7... Bg7 {[%clk 0:02:54.2]} 8. Be3 {[%clk 0:02:50.6]} 8...
O-O {[%clk 0:02:52.7]} 9. Qd2 {[%clk 0:02:49.6]} 9... Nd7 {[%clk 0:02:45.3]} 10.
Be2 {[%clk 0:02:48.7]} 10... Nc5 {[%clk 0:02:39.5]} 11. f3 {[%clk 0:02:31.4]}
11... Bd7 {[%clk 0:02:38.8]} 12. h4 {[%clk 0:02:30.4]} 12... Nxd4 {[%clk
0:02:17.9]} 13. Bxd4 {[%clk 0:02:29.2]} 13... Bxd4 {[%clk 0:02:18.8]} 14. Qxd4
{[%clk 0:02:29.1]} 14... Ne6 {[%clk 0:02:19.7]} 15. Qe3 {[%clk 0:02:27.7]} 15...
Bc6 {[%clk 0:02:15.2]} 16. h5 {[%clk 0:02:26.7]} 16... g5 {[%clk 0:02:14.4]} 17.
Bc4 {[%clk 0:02:21.8]} 17... Nf4 {[%clk 0:02:13.1]} 18. O-O-O {[%clk 0:02:17.7]}
18... Qb6 {[%clk 0:02:13.3]} 19. Qxb6 {[%clk 0:02:13.7]} 19... axb6 {[%clk
0:02:13.4]} 20. a3 {[%clk 0:02:13.5]} 20... Rac8 {[%clk 0:02:08.5]} 21. Bd5
{[%clk 0:02:12.1]} 21... h6 {[%clk 0:02:05.8]} 22. Rhe1 {[%clk 0:02:10]} 22...
Kg7 {[%clk 0:02:04.3]} 23. Rd4 {[%clk 0:02:09.8]} 23... Rfd8 {[%clk 0:01:58.8]}
24. Rb4 {[%clk 0:02:06.4]} 24... b5 {[%clk 0:01:53.2]} 25. Rd4 {[%clk 0:02:05]}
25... e6 {[%clk 0:01:51.9]} 26. Bb3 {[%clk 0:02:03]} 26... Kf6 {[%clk
0:01:47.9]} 27. Rb4 {[%clk 0:02:02.8]} 27... Be8 {[%clk 0:01:43.4]} 28. Kb1
{[%clk 0:02:02.5]} 28... Rc5 {[%clk 0:01:43.7]} 29. Rd4 {[%clk 0:01:50.1]} 29...
Ke7 {[%clk 0:01:42.5]} 30. Red1 {[%clk 0:01:47.6]} 30... Bc6 {[%clk 0:01:39.7]}
31. R1d2 {[%clk 0:01:47.6]} 31... Re5 {[%clk 0:01:39]} 32. Rb4 {[%clk
0:01:47.2]} 32... f5 {[%clk 0:01:36.7]} 33. gxf5 {[%clk 0:01:44.2]} 33... exf5
{[%clk 0:01:37.6]} 34. Nd5+ {[%clk 0:01:37.4]} 34... Bxd5 {[%clk 0:01:34.8]} 35.
exd5 {[%clk 0:01:38.3]} 35... Re3 {[%clk 0:01:26.4]} 36. Rxb5 {[%clk 0:01:35.6]}
36... Rd7 {[%clk 0:01:26.9]} 37. c4 {[%clk 0:01:25]} 37... Rxf3 {[%clk
0:01:24.8]} 38. c5 {[%clk 0:01:25.4]} 38... dxc5 {[%clk 0:01:24.8]} 39. d6+
{[%clk 0:01:25.9]} 39... Kf6 {[%clk 0:01:23.2]} 40. Rxc5 {[%clk 0:01:23.2]}
40... Rxb3 {[%clk 0:01:22]} 0-1

[Event "Early-Titled-Tuesday-Blitz-October-24-2023"]
[Site "Chess.com"]
[Date "2023.10.24"]
[Round "7"]
[White "adotand"]
[Black "Artemiki"]
[Result "1-0"]
[WhiteElo "2827"]
[BlackElo "2352"]
[TimeControl "180+1"]
[EndTime "9:13:09 PDT"]
[Termination "adotand won by checkmate"]

1. Nf3 {[%clk 0:02:43.2]} 1... Nf6 {[%clk 0:02:51.9]} 2. c4 {[%clk 0:02:43]}
2... c5 {[%clk 0:02:50.3]} 3. g3 {[%clk 0:02:42.6]} 3... Nc6 {[%clk 0:02:48.4]}
4. Bg2 {[%clk 0:02:43.2]} 4... g6 {[%clk 0:02:48.9]} 5. O-O {[%clk 0:02:43.9]}
5... Bg7 {[%clk 0:02:49.1]} 6. Nc3 {[%clk 0:02:44.6]} 6... O-O {[%clk
0:02:49.2]} 7. d3 {[%clk 0:02:45.2]} 7... d6 {[%clk 0:02:48.5]} 8. Bd2 {[%clk
0:02:45.9]} 8... e5 {[%clk 0:02:45.8]} 9. Bg5 {[%clk 0:02:44.9]} 9... h6 {[%clk
0:02:45.2]} 10. Bxf6 {[%clk 0:02:45.5]} 10... Bxf6 {[%clk 0:02:46.1]} 11. Nd2
{[%clk 0:02:46.4]} 11... Bg7 {[%clk 0:02:46]} 12. Nd5 {[%clk 0:02:46.8]} 12...
Be6 {[%clk 0:02:44.9]} 13. Ne4 {[%clk 0:02:47.3]} 13... f5 {[%clk 0:02:41.2]}
14. Nec3 {[%clk 0:02:46.9]} 14... Kh7 {[%clk 0:02:35.8]} 15. Rb1 {[%clk
0:02:46.4]} 15... a5 {[%clk 0:02:28]} 16. a3 {[%clk 0:02:46.5]} 16... Ne7 {[%clk
0:02:16]} 17. Nxe7 {[%clk 0:02:40.9]} 17... Qxe7 {[%clk 0:02:15.3]} 18. Nd5
{[%clk 0:02:41.8]} 18... Bxd5 {[%clk 0:02:10.7]} 19. Bxd5 {[%clk 0:02:42.7]}
19... e4 {[%clk 0:02:09.1]} 20. dxe4 {[%clk 0:02:42.1]} 20... fxe4 {[%clk
0:02:08.4]} 21. Qc2 {[%clk 0:02:37.3]} 21... Rae8 {[%clk 0:02:06.9]} 22. b4
{[%clk 0:02:37.7]} 22... e3 {[%clk 0:01:00.1]} 23. f3 {[%clk 0:02:35.1]} 23...
axb4 {[%clk 0:00:44.7]} 24. axb4 {[%clk 0:02:36]} 24... b6 {[%clk 0:00:45.3]}
25. bxc5 {[%clk 0:02:35.7]} 25... bxc5 {[%clk 0:00:46.2]} 26. Rb7 {[%clk
0:02:36.1]} 26... Qf6 {[%clk 0:00:46.8]} 27. Kg2 {[%clk 0:02:34.8]} 27... Re7
{[%clk 0:00:36.1]} 28. Rfb1 {[%clk 0:02:33.7]} 28... Rfe8 {[%clk 0:00:31.5]} 29.
h4 {[%clk 0:02:31.9]} 29... h5 {[%clk 0:00:29.4]} 30. Be4 {[%clk 0:02:28.6]}
30... Kh6 {[%clk 0:00:26.3]} 31. Bd3 {[%clk 0:02:27]} 31... Qc3 {[%clk
0:00:23.6]} 32. Bxg6 {[%clk 0:02:25.2]} 32... Qxc2 {[%clk 0:00:20.2]} 33. Bxc2
{[%clk 0:02:26.1]} 33... Rxb7 {[%clk 0:00:20]} 34. Rxb7 {[%clk 0:02:27]} 34...
Ra8 {[%clk 0:00:19.4]} 35. Rd7 {[%clk 0:02:26.3]} 35... Ra6 {[%clk 0:00:11.6]}
36. g4 {[%clk 0:02:26.5]} 36... hxg4 {[%clk 0:00:10.4]} 37. fxg4 {[%clk
0:02:27.4]} 37... Rb6 {[%clk 0:00:04.7]} 38. Kh3 {[%clk 0:02:23.6]} 38... Bh8
{[%clk 0:00:01.1]} 39. Rh7# {[%clk 0:02:23]} 1-0

[Event "Early-Titled-Tuesday-Blitz-October-24-2023"]
[Site "Chess.com"]
[Date "2023.10.24"]
[Round "7"]
[White "Dewarfd"]
[Black "Road2GM3000"]
[Result "1-0"]
[WhiteElo "2181"]
[BlackElo "2377"]
[TimeControl "180+1"]
[EndTime "9:13:11 PDT"]
[Termination "Dewarfd won by checkmate"]

1. d4 {[%clk 0:02:59.3]} 1... d5 {[%clk 0:03:00.5]} 2. e3 {[%clk 0:02:59.7]}
2... c6 {[%clk 0:03:01.2]} 3. Nf3 {[%clk 0:03:00.2]} 3... Nf6 {[%clk 0:03:02]}
4. Bd3 {[%clk 0:02:58.6]} 4... Bg4 {[%clk 0:03:02.6]} 5. h3 {[%clk 0:02:58.7]}
5... Bh5 {[%clk 0:03:02.9]} 6. g4 {[%clk 0:02:58.8]} 6... Bg6 {[%clk 0:03:03]}
7. Ne5 {[%clk 0:02:59.1]} 7... Nbd7 {[%clk 0:03:02.8]} 8. Nxg6 {[%clk
0:02:51.4]} 8... hxg6 {[%clk 0:03:03.7]} 9. c4 {[%clk 0:02:48.6]} 9... e6 {[%clk
0:03:03.2]} 10. Nc3 {[%clk 0:02:47.3]} 10... Bb4 {[%clk 0:03:02.7]} 11. a3
{[%clk 0:02:41.5]} 11... Bxc3+ {[%clk 0:03:01.8]} 12. bxc3 {[%clk 0:02:42.4]}
12... Ne4 {[%clk 0:03:01.8]} 13. cxd5 {[%clk 0:02:34.3]} 13... Nxc3 {[%clk
0:02:59]} 14. Qb3 {[%clk 0:02:31.1]} 14... Nxd5 {[%clk 0:02:58.8]} 15. Qxb7
{[%clk 0:02:28.3]} 15... Rc8 {[%clk 0:02:56]} 16. Qxa7 {[%clk 0:02:21.7]} 16...
N7f6 {[%clk 0:02:54]} 17. Be2 {[%clk 0:02:01.5]} 17... Nc3 {[%clk 0:02:47.4]}
18. Bf3 {[%clk 0:01:56.9]} 18... e5 {[%clk 0:02:39.3]} 19. Qc5 {[%clk
0:01:51.3]} 19... Ncd5 {[%clk 0:02:26.7]} 20. dxe5 {[%clk 0:01:46.6]} 20... Nd7
{[%clk 0:02:26.9]} 21. Qd6 {[%clk 0:01:45.7]} 21... Qg5 {[%clk 0:02:16.6]} 22.
Rb1 {[%clk 0:01:16.2]} 22... Qxe5 {[%clk 0:02:14]} 23. Qxe5+ {[%clk 0:01:11.4]}
23... Nxe5 {[%clk 0:02:14.9]} 24. Be2 {[%clk 0:01:11.5]} 24... Nc3 {[%clk
0:02:12.2]} 25. Rb7 {[%clk 0:01:10]} 25... Nxe2 {[%clk 0:02:12.6]} 26. Kxe2
{[%clk 0:01:10.4]} 26... Nxg4 {[%clk 0:02:13]} 27. Rd1 {[%clk 0:01:08.1]} 27...
Ne5 {[%clk 0:02:12.3]} 28. Bb2 {[%clk 0:01:08.1]} 28... Nc4 {[%clk 0:02:09.5]}
29. Bxg7 {[%clk 0:01:06.7]} 29... Rh7 {[%clk 0:02:00.3]} 30. Bf6 {[%clk
0:01:07]} 30... Nxa3 {[%clk 0:01:57.6]} 31. Rdd7 {[%clk 0:01:06.1]} 31... Nc4
{[%clk 0:01:49.1]} 32. Rbc7 {[%clk 0:01:02.7]} 32... Ra8 {[%clk 0:01:22.8]} 33.
Ra7 {[%clk 0:00:56]} 33... Rxa7 {[%clk 0:01:12.5]} 34. Rd8# {[%clk 0:00:55.5]}
1-0

[Event "Early-Titled-Tuesday-Blitz-October-24-2023"]
[Site "Chess.com"]
[Date "2023.10.24"]
[Round "7"]
[White "OLDTERMINATOR"]
[Black "Apocalyps999"]
[Result "0-1"]
[WhiteElo "1703"]
[BlackElo "2292"]
[TimeControl "180+1"]
[EndTime "9:13:18 PDT"]
[Termination "Apocalyps999 won on time"]

1. e4 {[%clk 0:03:00.9]} 1... e5 {[%clk 0:02:59.9]} 2. Nf3 {[%clk 0:03:00.4]}
2... Nc6 {[%clk 0:02:57.5]} 3. Bc4 {[%clk 0:02:58.9]} 3... Nf6 {[%clk
0:02:57.5]} 4. Ng5 {[%clk 0:02:57.4]} 4... d5 {[%clk 0:02:57.1]} 5. exd5 {[%clk
0:02:57.5]} 5... Na5 {[%clk 0:02:58]} 6. Bb5+ {[%clk 0:02:57.3]} 6... c6 {[%clk
0:02:58.5]} 7. dxc6 {[%clk 0:02:57.4]} 7... bxc6 {[%clk 0:02:59.4]} 8. Be2
{[%clk 0:02:57.2]} 8... h6 {[%clk 0:02:58.7]} 9. Nf3 {[%clk 0:02:55.9]} 9... Bd6
{[%clk 0:02:55.8]} 10. d3 {[%clk 0:02:53.3]} 10... O-O {[%clk 0:02:55.6]} 11.
Nc3 {[%clk 0:02:53.5]} 11... Nd5 {[%clk 0:02:52.3]} 12. Bd2 {[%clk 0:02:42.4]}
12... f5 {[%clk 0:02:34.5]} 13. O-O {[%clk 0:02:34.4]} 13... Nb7 {[%clk
0:02:31.1]} 14. Re1 {[%clk 0:02:14.8]} 14... Qf6 {[%clk 0:02:26.9]} 15. Bf1
{[%clk 0:01:54.5]} 15... Be6 {[%clk 0:02:20.9]} 16. a3 {[%clk 0:01:32.7]} 16...
Rfe8 {[%clk 0:02:15.6]} 17. Nxd5 {[%clk 0:00:24]} 17... cxd5 {[%clk 0:02:12]}
18. c4 {[%clk 0:00:23.6]} 18... d4 {[%clk 0:02:07.5]} 19. b4 {[%clk 0:00:19.2]}
19... a5 {[%clk 0:02:07.9]} 20. c5 {[%clk 0:00:15.3]} 20... Bc7 {[%clk
0:02:05.2]} 21. c6 {[%clk 0:00:05.5]} 21... Nd8 {[%clk 0:01:54.1]} 22. b5 {[%clk
0:00:05]} 22... Bd5 {[%clk 0:01:54.1]} 23. Nxd4 {[%clk 0:00:02.4]} 23... Nf7
{[%clk 0:01:35.4]} 0-1

[Event "Early-Titled-Tuesday-Blitz-October-24-2023"]
[Site "Chess.com"]
[Date "2023.10.24"]
[Round "7"]
[White "BardArtem"]
[Black "Mr_Lion22"]
[Result "1-0"]
[WhiteElo "2684"]
[BlackElo "2484"]
[TimeControl "180+1"]
[EndTime "9:13:37 PDT"]
[Termination "BardArtem won by resignation"]

1. e4 {[%clk 0:03:00.9]} 1... c5 {[%clk 0:02:59.9]} 2. c3 {[%clk 0:03:00.2]}
2... d6 {[%clk 0:03:00.6]} 3. d4 {[%clk 0:02:59.1]} 3... Nf6 {[%clk 0:03:00.4]}
4. Bd3 {[%clk 0:02:58.1]} 4... cxd4 {[%clk 0:02:59.7]} 5. cxd4 {[%clk 0:02:59]}
5... Nc6 {[%clk 0:02:58.8]} 6. Nf3 {[%clk 0:02:56.3]} 6... g6 {[%clk 0:02:59.1]}
7. d5 {[%clk 0:02:55]} 7... Ne5 {[%clk 0:02:58]} 8. Nxe5 {[%clk 0:02:53.2]} 8...
dxe5 {[%clk 0:02:58.9]} 9. Nc3 {[%clk 0:02:53.3]} 9... e6 {[%clk 0:02:57.9]} 10.
Bb5+ {[%clk 0:02:52.1]} 10... Bd7 {[%clk 0:02:51.6]} 11. dxe6 {[%clk 0:02:52]}
11... fxe6 {[%clk 0:02:50.9]} 12. Qb3 {[%clk 0:02:51.7]} 12... Kf7 {[%clk
0:02:47.6]} 13. O-O {[%clk 0:02:49.5]} 13... Bxb5 {[%clk 0:02:46]} 14. Qxb5
{[%clk 0:02:46.3]} 14... Qc7 {[%clk 0:02:33.3]} 15. Bg5 {[%clk 0:02:39.9]} 15...
Bc5 {[%clk 0:02:16.9]} 16. Bxf6 {[%clk 0:02:27.1]} 16... Kxf6 {[%clk 0:02:15.5]}
17. Rac1 {[%clk 0:02:27.8]} 17... Qb6 {[%clk 0:02:06.6]} 18. Qd3 {[%clk
0:02:10.2]} 18... Bd4 {[%clk 0:01:59.9]} 19. Kh1 {[%clk 0:02:05.6]} 19... Rac8
{[%clk 0:01:57.4]} 20. f4 {[%clk 0:02:03]} 20... Kg7 {[%clk 0:01:55.8]} 21. f5
{[%clk 0:01:59]} 21... Qxb2 {[%clk 0:01:46.4]} 22. f6+ {[%clk 0:01:08.3]} 22...
Kf7 {[%clk 0:01:45.6]} 23. Rb1 {[%clk 0:01:00.2]} 23... Qxc3 {[%clk 0:01:24.1]}
24. Rxb7+ {[%clk 0:00:59.1]} 24... Kf8 {[%clk 0:01:23.6]} 25. Qb5 {[%clk
0:00:57.4]} 25... Rd8 {[%clk 0:01:00.3]} 26. Rf7+ {[%clk 0:00:52.2]} 1-0

[Event "Early-Titled-Tuesday-Blitz-October-24-2023"]
[Site "Chess.com"]
[Date "2023.10.24"]
[Round "7"]
[White "YairParkhov"]
[Black "lluiss"]
[Result "1-0"]
[WhiteElo "2656"]
[BlackElo "2210"]
[TimeControl "180+1"]
[EndTime "9:13:37 PDT"]
[Termination "YairParkhov won by resignation"]

1. d4 {[%clk 0:02:58.8]} 1... Nf6 {[%clk 0:02:59.3]} 2. c4 {[%clk 0:02:57.4]}
2... g6 {[%clk 0:02:59.3]} 3. g3 {[%clk 0:02:55.7]} 3... c6 {[%clk 0:02:58.3]}
4. Bg2 {[%clk 0:02:54.7]} 4... d5 {[%clk 0:02:58.9]} 5. Qa4 {[%clk 0:02:55.1]}
5... dxc4 {[%clk 0:02:55.2]} 6. Qxc4 {[%clk 0:02:53.5]} 6... Be6 {[%clk
0:02:55.5]} 7. Qd3 {[%clk 0:02:46.5]} 7... Bg7 {[%clk 0:02:40.5]} 8. Nc3 {[%clk
0:02:44.7]} 8... Na6 {[%clk 0:02:36.1]} 9. Bxc6+ {[%clk 0:02:31.6]} 9... bxc6
{[%clk 0:02:34.5]} 10. Qxa6 {[%clk 0:02:32.3]} 10... O-O {[%clk 0:02:27.8]} 11.
Nf3 {[%clk 0:02:31]} 11... Nd5 {[%clk 0:01:44.5]} 12. O-O {[%clk 0:02:22.8]}
12... c5 {[%clk 0:01:39.6]} 13. dxc5 {[%clk 0:02:12.9]} 13... Nxc3 {[%clk
0:01:38.3]} 14. bxc3 {[%clk 0:02:13]} 14... Qc7 {[%clk 0:01:31.1]} 15. Be3
{[%clk 0:01:58.7]} 15... Bd5 {[%clk 0:01:24.6]} 16. Rfd1 {[%clk 0:01:46.4]}
16... e6 {[%clk 0:01:16.8]} 17. Bd4 {[%clk 0:01:42.8]} 17... Rfd8 {[%clk
0:00:58.8]} 18. Rac1 {[%clk 0:01:32.5]} 18... Rab8 {[%clk 0:00:48.8]} 19. Qa3
{[%clk 0:01:26.8]} 19... Qc6 {[%clk 0:00:37.3]} 20. Bxg7 {[%clk 0:01:24.1]}
20... Kxg7 {[%clk 0:00:36.8]} 21. Nd4 {[%clk 0:01:17.6]} 21... Qa8 {[%clk
0:00:29.9]} 22. c4 {[%clk 0:01:02.9]} 22... Bb7 {[%clk 0:00:27.7]} 23. Qc3
{[%clk 0:01:00.5]} 23... e5 {[%clk 0:00:26.8]} 24. Nb5 {[%clk 0:00:59.8]} 24...
f6 {[%clk 0:00:21.6]} 25. Nc7 {[%clk 0:00:59.5]} 1-0

[Event "Early-Titled-Tuesday-Blitz-October-24-2023"]
[Site "Chess.com"]
[Date "2023.10.24"]
[Round "7"]
[White "EvgenyBurmakin"]
[Black "Ural_bogatyr"]
[Result "1-0"]
[WhiteElo "2360"]
[BlackElo "2535"]
[TimeControl "180+1"]
[EndTime "9:13:42 PDT"]
[Termination "EvgenyBurmakin won by resignation"]

1. e4 {[%clk 0:03:00.9]} 1... e5 {[%clk 0:02:59.6]} 2. Nf3 {[%clk 0:03:00.3]}
2... Nc6 {[%clk 0:02:59.1]} 3. Bb5 {[%clk 0:03:00.5]} 3... a6 {[%clk 0:02:58]}
4. Ba4 {[%clk 0:03:00.9]} 4... Bc5 {[%clk 0:02:56.9]} 5. c3 {[%clk 0:02:59.8]}
5... Nge7 {[%clk 0:02:56.2]} 6. O-O {[%clk 0:02:55]} 6... Ba7 {[%clk 0:02:55.3]}
7. h3 {[%clk 0:02:51.9]} 7... Ng6 {[%clk 0:02:55.1]} 8. d4 {[%clk 0:02:51.3]}
8... O-O {[%clk 0:02:54.6]} 9. d5 {[%clk 0:02:42.8]} 9... Nce7 {[%clk
0:02:54.1]} 10. c4 {[%clk 0:02:41.9]} 10... d6 {[%clk 0:02:53.2]} 11. Be3 {[%clk
0:02:37.8]} 11... f5 {[%clk 0:02:49.9]} 12. exf5 {[%clk 0:02:26.4]} 12... Nxf5
{[%clk 0:02:45]} 13. Bxa7 {[%clk 0:02:26.2]} 13... Rxa7 {[%clk 0:02:45.9]} 14.
Nc3 {[%clk 0:02:23.5]} 14... Nf4 {[%clk 0:02:44.4]} 15. Ne2 {[%clk 0:02:10.7]}
15... Nh4 {[%clk 0:02:31.2]} 16. Nxf4 {[%clk 0:02:07.6]} 16... Rxf4 {[%clk
0:02:32.1]} 17. Nxh4 {[%clk 0:02:02.6]} 17... Rxh4 {[%clk 0:02:18.4]} 18. f4
{[%clk 0:01:48.2]} 18... Ra8 {[%clk 0:02:02.9]} 19. fxe5 {[%clk 0:01:45]} 19...
dxe5 {[%clk 0:01:59.8]} 20. Qf3 {[%clk 0:01:28]} 20... Rf4 {[%clk 0:01:57.4]}
21. Qg3 {[%clk 0:01:28.2]} 21... Qf6 {[%clk 0:01:53.2]} 22. Bb3 {[%clk
0:01:19.1]} 22... Bd7 {[%clk 0:01:34.9]} 23. c5 {[%clk 0:01:17.6]} 23... Rf8
{[%clk 0:01:32.4]} 24. Rxf4 {[%clk 0:01:10]} 24... exf4 {[%clk 0:01:33.3]} 25.
Qd3 {[%clk 0:01:05.6]} 25... Qxb2 {[%clk 0:01:23.9]} 26. d6+ {[%clk 0:01:03.7]}
26... Kh8 {[%clk 0:01:22.5]} 27. Rb1 {[%clk 0:01:02.9]} 27... Qe5 {[%clk
0:01:16.2]} 28. Qd5 {[%clk 0:00:45.3]} 28... Qe3+ {[%clk 0:01:11.9]} 29. Kh1
{[%clk 0:00:45.2]} 29... Bc6 {[%clk 0:01:11.2]} 30. Qg5 {[%clk 0:00:39.7]} 30...
f3 {[%clk 0:01:01.4]} 31. Qxe3 {[%clk 0:00:39]} 31... fxg2+ {[%clk 0:01:00]} 32.
Kg1 {[%clk 0:00:38.5]} 1-0

[Event "Early-Titled-Tuesday-Blitz-October-24-2023"]
[Site "Chess.com"]
[Date "2023.10.24"]
[Round "7"]
[White "chessfatbear"]
[Black "gau248"]
[Result "1-0"]
[WhiteElo "2809"]
[BlackElo "2596"]
[TimeControl "180+1"]
[EndTime "9:13:44 PDT"]
[Termination "chessfatbear won by resignation"]

1. Nf3 {[%clk 0:03:00.9]} 1... d5 {[%clk 0:02:59]} 2. g3 {[%clk 0:02:59.7]} 2...
Nf6 {[%clk 0:02:58.6]} 3. Bg2 {[%clk 0:03:00.6]} 3... b5 {[%clk 0:02:58.6]} 4.
O-O {[%clk 0:02:58.6]} 4... e6 {[%clk 0:02:56.7]} 5. d3 {[%clk 0:02:57]} 5...
Bb7 {[%clk 0:02:55]} 6. Nbd2 {[%clk 0:02:53.6]} 6... Be7 {[%clk 0:02:53.6]} 7.
b3 {[%clk 0:02:50.4]} 7... O-O {[%clk 0:02:53]} 8. Bb2 {[%clk 0:02:42]} 8... c5
{[%clk 0:02:49]} 9. a4 {[%clk 0:02:40.8]} 9... a6 {[%clk 0:02:47.5]} 10. e3
{[%clk 0:02:40.1]} 10... Nbd7 {[%clk 0:02:45.9]} 11. Qe2 {[%clk 0:02:39.4]}
11... h6 {[%clk 0:02:36.8]} 12. Ne5 {[%clk 0:02:38.6]} 12... Nxe5 {[%clk
0:02:35.3]} 13. Bxe5 {[%clk 0:02:39.5]} 13... Nd7 {[%clk 0:02:35.9]} 14. Bb2
{[%clk 0:02:39.4]} 14... Bf6 {[%clk 0:02:36.4]} 15. Bxf6 {[%clk 0:02:38.1]}
15... Nxf6 {[%clk 0:02:33.5]} 16. c4 {[%clk 0:02:32]} 16... b4 {[%clk
0:02:28.7]} 17. Rac1 {[%clk 0:02:29.2]} 17... Rc8 {[%clk 0:02:25.2]} 18. d4
{[%clk 0:02:06.8]} 18... Qe7 {[%clk 0:02:12]} 19. cxd5 {[%clk 0:01:49.4]} 19...
Nxd5 {[%clk 0:02:09.8]} 20. Bxd5 {[%clk 0:01:47.3]} 20... Bxd5 {[%clk
0:02:10.7]} 21. Qxa6 {[%clk 0:01:37.8]} 21... cxd4 {[%clk 0:02:10.6]} 22. Rxc8
{[%clk 0:01:34.8]} 22... dxe3 {[%clk 0:02:06.8]} 23. Rxf8+ {[%clk 0:01:33.2]}
23... Qxf8 {[%clk 0:02:07.7]} 24. fxe3 {[%clk 0:01:32.6]} 24... Qc5 {[%clk
0:02:08.3]} 25. Qd3 {[%clk 0:01:29.7]} 25... f5 {[%clk 0:02:06.1]} 26. Qd4
{[%clk 0:01:24.4]} 26... Qc2 {[%clk 0:02:04]} 27. e4 {[%clk 0:01:10.6]} 27...
fxe4 {[%clk 0:02:03.7]} 28. Qe3 {[%clk 0:01:10.9]} 28... h5 {[%clk 0:01:56.7]}
29. a5 {[%clk 0:01:09.9]} 29... h4 {[%clk 0:01:55]} 30. gxh4 {[%clk 0:01:09.8]}
30... Qa2 {[%clk 0:01:36.7]} 31. Nc4 {[%clk 0:01:09.8]} 31... Qc2 {[%clk
0:01:32.1]} 32. a6 {[%clk 0:01:07.7]} 32... Bxc4 {[%clk 0:01:17.6]} 33. bxc4
{[%clk 0:01:08.6]} 33... Qxc4 {[%clk 0:01:18.5]} 34. a7 {[%clk 0:01:07.9]} 34...
Qa6 {[%clk 0:01:18.2]} 35. h5 {[%clk 0:01:05.5]} 35... e5 {[%clk 0:01:17.6]} 36.
Qf2 {[%clk 0:01:00.1]} 36... e3 {[%clk 0:01:09.6]} 37. Qf7+ {[%clk 0:00:57.6]}
37... Kh8 {[%clk 0:01:02.3]} 38. Qe8+ {[%clk 0:00:57.8]} 38... Kh7 {[%clk
0:01:02.7]} 39. Qg6+ {[%clk 0:00:58.7]} 39... Kg8 {[%clk 0:01:00.1]} 1-0